[Event "Ceske Budejovice Open-A 2019"]
[Site "Ceske Budejovice"]
[Date "2019.07.04"]
[Round "6.7"]
[White "Muron, Miroslav"]
[Black "Nejdl, Eduard"]
[Result "0-1"]
[ECO "C47"]
[WhiteElo "2215"]
[BlackElo "1995"]
[Annotator "NA"]
[PlyCount "48"]
[EventDate "2019.07.02"]
[EventCountry "CZE"]
[SourceTitle "playchess.com"]
[Source "ChessBase"]
[SourceQuality "1"]
[TimeControl "5400+30"]

1. e4 {[%emt 0:00:46]} Nf6 {[%emt 0:00:00]} 2. Nc3 {[%emt 0:00:13]} e5 {[%emt 0:00:00]} 3. Nf3 {[%emt 0:00:28]} Nc6 {[%emt 0:00:00]} 4. d3 {[%emt 0:05:41]} d5 {[%emt 0:01:08]} 5. exd5 {[%emt 0:02:04]} Nxd5 {[%emt 0:00:35]} 6. Nxd5 {[%emt 0:00:12]} Qxd5 {[%emt 0:00:17]} 7. Be2 {[%emt 0:00:05]} Be7 {[%emt 0:01:14]} 8. O-O {[%emt 0:00:05]} O-O {[%emt 0:00:50]} 9. c3 {[%emt 0:03:25]} Bg4 {[%emt 0:05:19]} 10. d4 {[%emt 0:10:54]} exd4 {[%emt 0:07:29]} 11. Nxd4 {[%emt 0:00:49]} Bxe2 {[%emt 0:01:47]} 12. Nxe2 {[%emt 0:00:43]} Qc4 {[%emt 0:04:34]} 13. b3 {[%emt 0:06:55]} Qh4 {[%emt 0:06:41]} 14. g3 {[%emt 0:06:45]} Qe4 {[%emt 0:05:25]} 15. f3 {[%emt 0:02:03]} Bc5+ {[%emt 0:01:27]} 16. Kg2 {[%emt 0:00:03]} Qe7 {[%emt 0:04:18]} 17. Qc2 {[%emt 0:05:27]} Rfe8 {[%emt 0:03:22]} 18. Ng1 {[%emt 0:07:28]} Rad8 {[%emt 0:06:50]} 19. Bd2 {[%emt 0:00:52]} Bxg1 {[%emt 0:08:35]} 20. Kxg1 {[%emt 0:00:04]} Qc5+ {[%emt 0:00:11]} 21. Kh1 {[%emt 0:01:01]} Re2 {[%emt 0:00:13]} 22. Rae1 {[%emt 0:01:41]} Rdxd2 {[%emt 0:02:28]} 23. Rxe2 {[%emt 0:02:19]} Rxc2 {[%emt 0:00:07]} 24. Rxc2 {[%emt 0:00:03]} g6 {[%emt 0:02:05]} 0-1

[Event "Ceske Budejovice Open-A 2019"]
[Site "Ceske Budejovice"]
[Date "2019.07.04"]
[Round "6.8"]
[White "Sykora, Ondrej"]
[Black "Barrish, Daniel"]
[Result "1/2-1/2"]
[ECO "C50"]
[WhiteElo "2065"]
[BlackElo "2237"]
[Annotator "NA"]
[PlyCount "138"]
[EventDate "2019.07.02"]
[EventCountry "CZE"]
[SourceTitle "playchess.com"]
[Source "ChessBase"]
[SourceQuality "1"]
[TimeControl "5400+30"]

1. e4 {[%emt 0:00:00]} e5 {[%emt 0:00:00]} 2. Nf3 {[%emt 0:00:00]} Nc6 {[%emt 0:00:00]} 3. Bc4 {[%emt 0:00:00]} Bc5 {[%emt 0:00:01]} 4. O-O {[%emt 0:00:00]} Nf6 {[%emt 0:00:14]} 5. d4 {[%emt 0:00:00]} Bxd4 {[%emt 0:09:21]} 6. Nxd4 {[%emt 0:00:05]} Nxd4 {[%emt 0:00:44]} 7. Bg5 {[%emt 0:00:27]} h6 {[%emt 0:18:52]} 8. Bh4 {[%emt 0:00:24]} g5 {[%emt 0:01:34]} 9. f4 {[%emt 0:00:11]} gxh4 {[%emt 0:16:29]} 10. fxe5 {[%emt 0:07:38]} d5 {[%emt 0:01:16]} 11. Qxd4 {[%emt 0:07:05]} dxc4 {[%emt 0:00:23]} 12. Qxd8+ {[%emt 0:01:21]} Kxd8 {[%emt 0:00:06]} 13. exf6 {[%emt 0:05:55]} h3 {[%emt 0:13:46]} 14. g3 {[%emt 0:01:52]} c6 {[%emt 0:00:37]} 15. Nc3 {[%emt 0:03:50]} Bg4 {[%emt 0:05:34]} 16. Rf4 {[%emt 0:02:45]} h5 {[%emt 0:00:46]} 17. e5 {[%emt 0:00:26]} Re8 {[%emt 0:01:11]} 18. Rxc4 {[%emt 0:06:57]} Rxe5 {[%emt 0:00:33]} 19. Re4 {[%emt 0:00:47]} Rxe4 {[%emt 0:04:07]} 20. Nxe4 {[%emt 0:00:01]} Kc7 {[%emt 0:04:19]} 21. Rf1 {[%emt 0:00:23]} Be6 {[%emt 0:08:32]} 22. Ng5 {[%emt 0:02:10]} Kd6 {[%emt 0:00:17]} 23. Re1 {[%emt 0:00:35]} Rg8 {[%emt 0:01:19]} 24. Nxe6 {[%emt 0:05:33]} fxe6 {[%emt 0:00:06]} 25. Rd1+ {[%emt 0:00:06]} Kc7 {[%emt 0:04:25]} 26. Rd4 {[%emt 0:03:33]} e5 {[%emt 0:05:24]} 27. Rh4 {[%emt 0:02:30]} Kd6 {[%emt 0:00:16]} 28. Rxh5 {[%emt 0:00:39]} Ke6 {[%emt 0:00:05]} 29. Rxh3 {[%emt 0:00:14]} Rd8 {[%emt 0:00:57]} 30. Rh7 {[%emt 0:00:21]} Kxf6 {[%emt 0:00:37]} 31. Rxb7 {[%emt 0:02:12]} Rd1+ {[%emt 0:00:06]} 32. Kf2 {[%emt 0:01:18]} Rd2+ {[%emt 0:00:05]} 33. Kf3 {[%emt 0:00:05]} Rxh2 {[%emt 0:00:33]} 34. Rxa7 {[%emt 0:11:47]} Rxc2 {[%emt 0:00:07]} 35. Rb7 {[%emt 0:00:03]} Rd2 {[%emt 0:01:59]} 36. a4 {[%emt 0:01:22]} Rd3+ {[%emt 0:00:04]} 37. Kf2 {[%emt 0:00:26]} Rd4 {[%emt 0:02:03]} 38. a5 {[%emt 0:09:28]} Ra4 {[%emt 0:00:05]} 39. Rb6 {[%emt 0:01:03]} Rxa5 {[%emt 0:00:08]} 40. Rxc6+ {[%emt 0:00:06]} Kf5 {[%emt 0:00:21]} 41. Rc2 {[%emt 0:00:41]} Rb5 {[%emt 0:01:51]} 42. Re2 {[%emt 0:03:38]} Rb3 {[%emt 0:00:30]} 43. Kg2 {[%emt 0:01:36]} Kg4 {[%emt 0:00:00]} 44. Kf2 {[%emt 0:00:00]} Rxg3 {[%emt 0:00:00]} 45. Rxe5 {[%emt 0:00:00]} Rb3 {[%emt 0:00:00]} 46. Re4+ {[%emt 0:00:00]} Kf5 {[%emt 0:00:00]} 47. Re2 {[%emt 0:00:00]} Kf4 {[%emt 0:00:00]} 48. Rc2 {[%emt 0:00:00]} Ke4 {[%emt 0:00:00]} 49. Ke2 {[%emt 0:00:00]} Kd4 {[%emt 0:00:00]} 50. Kd2 {[%emt 0:00:00]} Rb4 {[%emt 0:00:00]} 51. Kd1 {[%emt 0:00:00]} Rc4 {[%emt 0:00:00]} 52. Rh2 {[%emt 0:00:00]} Kc5 {[%emt 0:00:00]} 53. Rh8 {[%emt 0:00:00]} Kb5 {[%emt 0:00:00]} 54. Rb8+ {[%emt 0:00:00]} Ka6 {[%emt 0:00:00]} 55. Kd2 {[%emt 0:00:00]} Rc5 {[%emt 0:00:00]} 56. Kd3 {[%emt 0:00:00]} Rb5 {[%emt 0:00:00]} 57. Ra8+ {[%emt 0:00:00]} Kb7 {[%emt 0:00:00]} 58. Ra2 {[%emt 0:00:00]} Rh5 {[%emt 0:00:00]} 59. b3 {[%emt 0:00:00]} Rh3+ {[%emt 0:00:00]} 60. Kc4 {[%emt 0:00:00]} Rh4+ {[%emt 0:00:00]} 61. Kb5 {[%emt 0:00:00]} Rh5+ {[%emt 0:00:00]} 62. Ka4 {[%emt 0:00:00]} Rh4+ {[%emt 0:00:00]} 63. b4 {[%emt 0:00:00]} Rh5 {[%emt 0:00:00]} 64. Rg2 {[%emt 0:00:00]} Rf5 {[%emt 0:00:00]} 65. Rg6 {[%emt 0:00:00]} Rh5 {[%emt 0:00:00]} 66. Rg4 {[%emt 0:00:00]} Rf5 {[%emt 0:00:00]} 67. Rg7+ {[%emt 0:00:49]} Kb6 {[%emt 0:00:00]} 68. Rg6+ {[%emt 0:00:03]} Kb7 {[%emt 0:00:00]} 69. b5 {[%emt 0:00:08]} Rf1 {[%emt 0:00:00]} 1/2-1/2

[Event "Ceske Budejovice Open-A 2019"]
[Site "Ceske Budejovice"]
[Date "2019.07.04"]
[Round "6.9"]
[White "Glimbrant, Torbjorn"]
[Black "Vltavsky, Vladimir"]
[Result "1/2-1/2"]
[ECO "E19"]
[WhiteElo "2195"]
[BlackElo "2179"]
[Annotator "NA"]
[PlyCount "152"]
[EventDate "2019.07.02"]
[EventCountry "CZE"]
[SourceTitle "playchess.com"]
[Source "ChessBase"]
[SourceQuality "1"]
[TimeControl "5400+30"]

1. d4 {[%emt 0:00:41]} Nf6 {[%emt 0:01:24]} 2. c4 {[%emt 0:00:13]} e6 {[%emt 0:00:08]} 3. Nf3 {[%emt 0:00:11]} b6 {[%emt 0:00:09]} 4. g3 {[%emt 0:00:13]} Bb7 {[%emt 0:00:11]} 5. Bg2 {[%emt 0:00:12]} Be7 {[%emt 0:01:30]} 6. O-O {[%emt 0:00:16]} O-O {[%emt 0:00:04]} 7. Nc3 {[%emt 0:00:20]} Ne4 {[%emt 0:00:07]} 8. Qc2 {[%emt 0:00:13]} Nxc3 {[%emt 0:00:09]} 9. Qxc3 {[%emt 0:00:07]} d6 {[%emt 0:00:13]} 10. b3 {[%emt 0:00:17]} Nd7 {[%emt 0:00:37]} 11. Bb2 {[%emt 0:00:26]} Bf6 {[%emt 0:00:25]} 12. Qc2 {[%emt 0:08:08]} g6 {[%emt 0:00:55]} 13. Rad1 {[%emt 0:02:28]} Qe7 {[%emt 0:01:37]} 14. Ne1 {[%emt 0:04:11]} Bxg2 {[%emt 0:00:49]} 15. Nxg2 {[%emt 0:00:08]} Bg7 {[%emt 0:10:14]} 16. e4 {[%emt 0:14:50]} e5 {[%emt 0:02:08]} 17. Ne3 {[%emt 0:06:55]} exd4 {[%emt 0:00:36]} 18. Nd5 {[%emt 0:01:31]} Qd8 {[%emt 0:00:03]} 19. Bxd4 {[%emt 0:00:15]} Bxd4 {[%emt 0:00:22]} 20. Rxd4 {[%emt 0:00:07]} a5 {[%emt 0:01:24]} 21. Kg2 {[%emt 0:15:07]} Nf6 {[%emt 0:04:54]} 22. Re1 {[%emt 0:05:20]} Nxd5 {[%emt 0:04:42]} 23. cxd5 {[%emt 0:05:15]} f6 {[%emt 0:00:08]} 24. h4 {[%emt 0:07:47]} Rf7 {[%emt 0:04:17]} 25. Rc4 {[%emt 0:07:50]} Qd7 {[%emt 0:04:02]} 26. Rc1 {[%emt 0:03:39]} Ra7 {[%emt 0:00:19]} 27. Qc3 {[%emt 0:04:28]} Kf8 {[%emt 0:03:13]} 28. Qd4 {[%emt 0:01:06]} Qg4 {[%emt 0:08:52]} 29. R1c3 {[%emt 0:02:06]} Kg7 {[%emt 0:02:13]} 30. Rf3 {[%emt 0:03:34]} Qd7 {[%emt 0:00:36]} 31. Rfc3 {[%emt 0:01:04]} Qg4 {[%emt 0:00:19]} 32. a4 {[%emt 0:02:12]} h5 {[%emt 0:02:42]} 33. Qd2 {[%emt 0:00:42]} Qd7 {[%emt 0:00:13]} 34. Qc1 {[%emt 0:01:00]} Qd8 {[%emt 0:01:34]} 35. Rf3 {[%emt 0:01:56]} Qd7 {[%emt 0:00:28]} 36. Rfc3 {[%emt 0:00:19]} Qe7 {[%emt 0:00:43]} 37. Qc2 {[%emt 0:01:22]} Qd7 {[%emt 0:00:14]} 38. Kh2 {[%emt 0:00:50]} Kh6 {[%emt 0:01:31]} 39. Qc1+ {[%emt 0:01:15]} Kh7 {[%emt 0:00:58]} 40. Qc2 {[%emt 0:00:17]} Kh6 {[%emt 0:00:09]} 41. Qd1 {[%emt 0:00:00]} b5 {[%emt 0:00:00]} 42. axb5 {[%emt 0:00:00]} Qxb5 {[%emt 0:00:00]} 43. Qd4 {[%emt 0:00:00]} Rb7 {[%emt 0:00:00]} 44. Kg2 {[%emt 0:00:00]} Qd7 {[%emt 0:00:00]} 45. Rf3 {[%emt 0:00:00]} Kg7 {[%emt 0:00:00]} 46. Qc3 {[%emt 0:00:00]} Qb5 {[%emt 0:00:00]} 47. Ra4 {[%emt 0:00:00]} Ra7 {[%emt 0:00:00]} 48. Rd3 {[%emt 0:00:00]} Ra6 {[%emt 0:00:00]} 49. Rdd4 {[%emt 0:00:00]} Qb7 {[%emt 0:00:00]} 50. Rdc4 {[%emt 0:00:00]} Rb6 {[%emt 0:00:00]} 51. Qxa5 {[%emt 0:00:00]} Rxb3 {[%emt 0:00:00]} 52. Rab4 {[%emt 0:00:00]} Rxb4 {[%emt 0:00:00]} 53. Qxb4 {[%emt 0:00:00]} Qa8 {[%emt 0:00:00]} 54. Qc3 {[%emt 0:00:00]} Qe8 {[%emt 0:00:00]} 55. Qc2 {[%emt 0:00:00]} Qd7 {[%emt 0:00:00]} 56. Qb1 {[%emt 0:00:00]} Qe8 {[%emt 0:00:00]} 57. Qc1 {[%emt 0:00:00]} Qe7 {[%emt 0:00:00]} 58. Qc3 {[%emt 0:00:03]} Qe5 {[%emt 0:00:00]} 59. Qxe5 {[%emt 0:00:56]} fxe5 {[%emt 0:00:00]} 60. Ra4 {[%emt 0:00:35]} Kf6 {[%emt 0:00:00]} 61. Ra8 {[%emt 0:00:15]} Rg7 {[%emt 0:02:19]} 62. Rc8 {[%emt 0:02:01]} g5 {[%emt 0:00:23]} 63. hxg5+ {[%emt 0:00:27]} Kxg5 {[%emt 0:00:04]} 64. Rf8 {[%emt 0:04:51]} h4 {[%emt 0:01:51]} 65. Kf3 {[%emt 0:00:36]} hxg3 {[%emt 0:00:17]} 66. fxg3 {[%emt 0:00:16]} c5 {[%emt 0:00:29]} 67. dxc6 {[%emt 0:00:57]} Rc7 {[%emt 0:00:27]} 68. Rg8+ {[%emt 0:00:22]} Kf6 {[%emt 0:00:15]} 69. Rf8+ {[%emt 0:00:57]} Kg7 {[%emt 0:03:44]} 70. Rd8 {[%emt 0:00:15]} Rxc6 {[%emt 0:00:05]} 71. Kg4 {[%emt 0:00:16]} Kf6 {[%emt 0:00:52]} 72. Rf8+ {[%emt 0:01:18]} Ke6 {[%emt 0:00:53]} 73. Rh8 {[%emt 0:00:33]} Rc3 {[%emt 0:01:10]} 74. Rh6+ {[%emt 0:00:28]} Ke7 {[%emt 0:00:19]} 75. Rh7+ {[%emt 0:00:09]} Ke6 {[%emt 0:00:16]} 76. Rh6+ {[%emt 0:00:06]} Ke7 {[%emt 0:01:27]} 1/2-1/2

[Event "Ceske Budejovice Open-A 2019"]
[Site "Ceske Budejovice"]
[Date "2019.07.04"]
[Round "6.10"]
[White "Steiner, Bruno"]
[Black "Mulenko, Alexander"]
[Result "1/2-1/2"]
[ECO "B06"]
[WhiteElo "2179"]
[BlackElo "2055"]
[Annotator "NA"]
[PlyCount "83"]
[EventDate "2019.07.02"]
[EventCountry "CZE"]
[SourceTitle "playchess.com"]
[Source "ChessBase"]
[SourceQuality "1"]
[TimeControl "5400+30"]

1. d4 {[%emt 0:00:15]} g6 {[%emt 0:00:02]} 2. e4 {[%emt 0:00:10]} Bg7 {[%emt 0:00:05]} 3. Nf3 {[%emt 0:02:05]} c5 {[%emt 0:00:33]} 4. dxc5 {[%emt 0:00:11]} Nf6 {[%emt 0:01:16]} 5. Bd3 {[%emt 0:03:57]} Qa5+ {[%emt 0:00:48]} 6. c3 {[%emt 0:00:34]} Qxc5 {[%emt 0:00:31]} 7. Na3 {[%emt 0:00:12]} O-O {[%emt 0:10:52]} 8. Nb5 {[%emt 0:07:30]} Ng4 {[%emt 0:04:43]} 9. Qe2 {[%emt 0:02:46]} a6 {[%emt 0:02:19]} 10. Nbd4 {[%emt 0:02:35]} Nc6 {[%emt 0:02:37]} 11. h3 {[%emt 0:01:32]} Nge5 {[%emt 0:03:21]} 12. Nxe5 {[%emt 0:12:16]} Nxe5 {[%emt 0:00:18]} 13. Be3 {[%emt 0:08:49]} Nxd3+ {[%emt 0:00:31]} 14. Qxd3 {[%emt 0:00:09]} Qc7 {[%emt 0:01:02]} 15. Ne2 {[%emt 0:03:50]} b5 {[%emt 0:06:39]} 16. O-O {[%emt 0:03:57]} Bb7 {[%emt 0:01:52]} 17. Bd4 {[%emt 0:06:42]} e5 {[%emt 0:01:27]} 18. Be3 {[%emt 0:00:51]} d5 {[%emt 0:01:20]} 19. exd5 {[%emt 0:03:06]} Rad8 {[%emt 0:00:12]} 20. Qe4 {[%emt 0:01:18]} Rxd5 {[%emt 0:01:56]} 21. Qh4 {[%emt 0:00:45]} Qc6 {[%emt 0:02:14]} 22. f3 {[%emt 0:00:56]} Rfd8 {[%emt 0:01:27]} 23. a4 {[%emt 0:00:44]} Qc4 {[%emt 0:04:19]} 24. Qxc4 {[%emt 0:05:02]} bxc4 {[%emt 0:03:14]} 25. Kf2 {[%emt 0:02:40]} Bc6 {[%emt 0:01:54]} 26. Rfb1 {[%emt 0:05:30]} Rb8 {[%emt 0:06:41]} 27. a5 {[%emt 0:08:42]} Bf8 {[%emt 0:01:19]} 28. Ra2 {[%emt 0:05:15]} f6 {[%emt 0:01:04]} 29. Nc1 {[%emt 0:00:50]} Be7 {[%emt 0:05:18]} 30. b4 {[%emt 0:04:14]} cxb3 {[%emt 0:00:24]} 31. Rxb3 {[%emt 0:00:10]} Rxb3 {[%emt 0:02:01]} 32. Nxb3 {[%emt 0:00:02]} Rb5 {[%emt 0:00:33]} 33. Nd2 {[%emt 0:02:37]} Bd8 {[%emt 0:00:39]} 34. c4 {[%emt 0:00:09]} Rxa5 {[%emt 0:02:18]} 35. Rb2 {[%emt 0:00:07]} Kf7 {[%emt 0:04:35]} 36. Rb8 {[%emt 0:00:27]} Be7 {[%emt 0:00:37]} 37. Rb6 {[%emt 0:00:28]} Be8 {[%emt 0:03:25]} 38. Rb7 {[%emt 0:02:23]} Ke6 {[%emt 0:02:22]} 39. Rb6+ {[%emt 0:00:34]} Kf7 {[%emt 0:00:32]} 40. Rb7 {[%emt 0:02:10]} Ke6 {[%emt 0:00:12]} 41. Rb6+ {[%emt 0:01:29]} Kf7 {[%emt 0:00:15]} 42. Rb7 1/2-1/2

[Event "Ceske Budejovice Open-A 2019"]
[Site "Ceske Budejovice"]
[Date "2019.07.04"]
[Round "6.11"]
[White "Schmid, Thomas"]
[Black "Barak, David"]
[Result "1-0"]
[ECO "B11"]
[WhiteElo "2201"]
[BlackElo "2015"]
[Annotator "ChessBase"]
[PlyCount "143"]
[EventDate "2019.07.02"]
[EventCountry "CZE"]
[SourceTitle "playchess.com"]
[Source "ChessBase"]
[SourceQuality "1"]
[TimeControl "5400+30"]

1. e4 {[%emt 0:00:00]} c6 {[%emt 0:00:00]} 2. Nc3 {[%emt 0:00:00]} d5 {[%emt 0:00:00]} 3. Nf3 {[%emt 0:00:00]} Bg4 {[%emt 0:00:00]} 4. h3 {[%emt 0:00:00]} Bxf3 {[%emt 0:00:00]} 5. Qxf3 {[%emt 0:00:00]} e6 {[%emt 0:00:00]} 6. d4 {[%emt 0:00:08]} dxe4 {[%emt 0:00:05]} 7. Qxe4 {[%emt 0:00:05]} Nf6 {[%emt 0:00:50]} 8. Qd3 {[%emt 0:00:05]} Na6 {[%emt 0:00:58]} 9. a3 {[%emt 0:00:17]} Qa5 {[%emt 0:01:49]} 10. Rb1 {[%emt 0:00:49]} Nc7 {[%emt 0:01:57]} 11. g3 {[%emt 0:14:50]} Bd6 {[%emt 0:20:33]} 12. Bd2 {[%emt 0:10:00]} Qf5 {[%emt 0:05:14]} 13. Qxf5 {[%emt 0:03:25]} exf5 {[%emt 0:00:06]} 14. Bd3 {[%emt 0:01:48]} g6 {[%emt 0:17:40]} 15. Bh6 {[%emt 0:10:03]} O-O-O {[%emt 0:08:27]} 16. O-O {[%emt 0:02:40]} Bf8 {[%emt 0:07:30]} 17. Bxf8 {[%emt 0:10:32]} Rhxf8 {[%emt 0:00:18]} 18. Ne2 {[%emt 0:00:23]} Ne6 {[%emt 0:04:48]} 19. Rbd1 {[%emt 0:02:41]} Kc7 {[%emt 0:03:36]} 20. Bc4 {[%emt 0:01:45]} Rfe8 {[%emt 0:06:17]} 21. c3 {[%emt 0:03:42]} Ne4 {[%emt 0:08:47]} 22. Kg2 {[%emt 0:03:25]} Nd6 {[%emt 0:01:11]} 23. Ba2 {[%emt 0:02:46]} Ng5 {[%emt 0:01:52]} 24. Nf4 {[%emt 0:01:07]} Nge4 {[%emt 0:02:30]} 25. Rfe1 {[%emt 0:08:57]} Nf6 {[%emt 0:01:23]} 26. Re5 {[%emt 0:02:46]} Nd7 {[%emt 0:03:33]} 27. Ree1 {[%emt 0:02:34]} Nf6 {[%emt 0:00:47]} 28. Nd3 {[%emt 0:00:32]} Rxe1 {[%emt 0:01:02]} 29. Rxe1 {[%emt 0:00:16]} Re8 {[%emt 0:00:20]} 30. Re5 {[%emt 0:02:22]} Kd8 {[%emt 0:01:11]} 31. Kf3 {[%emt 0:06:49]} Nd7 {[%emt 0:00:40]} 32. Rxe8+ {[%emt 0:00:41]} Kxe8 {[%emt 0:00:06]} 33. Ke3 {[%emt 0:00:56]} Ke7 {[%emt 0:00:38]} 34. c4 {[%emt 0:02:28]} h6 {[%emt 0:01:02]} 35. c5 {[%emt 0:03:07]} Ne4 {[%emt 0:01:15]} 36. b4 {[%emt 0:02:43]} Nef6 {[%emt 0:00:37]} 37. a4 {[%emt 0:00:30]} a6 {[%emt 0:00:21]} 38. Nb2 {[%emt 0:01:28]} Nf8 {[%emt 0:00:51]} 39. Bc4 {[%emt 0:01:17]} Ne6 {[%emt 0:00:29]} 40. Nd3 {[%emt 0:00:54]} Nc7 {[%emt 0:00:34]} 41. Kd2 {[%emt 0:00:00]} g5 {[%emt 0:00:00]} 42. Kc3 {[%emt 0:00:00]} h5 {[%emt 0:00:00]} 43. Kd2 {[%emt 0:00:00]} Nfd5 {[%emt 0:00:00]} 44. Bb3 {[%emt 0:00:00]} Nf6 {[%emt 0:00:00]} 45. Ke2 {[%emt 0:00:00]} Ncd5 {[%emt 0:00:00]} 46. h4 {[%emt 0:00:00]} Nc3+ {[%emt 0:00:15]} 47. Kf3 {[%emt 0:00:00]} Nfe4 {[%emt 0:00:58]} 48. Ke3 {[%emt 0:00:00]} f6 {[%emt 0:01:11]} 49. Nb2 {[%emt 0:00:00]} Nd5+ {[%emt 0:02:12]} 50. Bxd5 {[%emt 0:00:00]} cxd5 {[%emt 0:00:02]} 51. b5 {[%emt 0:00:00]} axb5 {[%emt 0:00:23]} 52. axb5 {[%emt 0:00:00]} f4+ {[%emt 0:00:38]} 53. Kf3 {[%emt 0:00:00]} f5 {[%emt 0:01:01]} 54. hxg5 {[%emt 0:00:00]} fxg3 {[%emt 0:00:18]} 55. fxg3 {[%emt 0:00:00]} Nxg5+ {[%emt 0:00:17]} 56. Ke3 {[%emt 0:01:19]} Ne6 {[%emt 0:00:31]} 57. Nd3 {[%emt 0:00:20]} Nc7 {[%emt 0:00:48]} 58. b6 {[%emt 0:00:25]} Ne8 {[%emt 0:00:32]} 59. Ne5 {[%emt 0:03:51]} Kd8 {[%emt 0:00:31]} 60. Kf4 {[%emt 0:00:36]} Nf6 {[%emt 0:00:29]} 61. Kxf5 {[%emt 0:00:39]} Ne4 {[%emt 0:00:23]} 62. Kf4 {[%emt 0:00:30]} Ke7 {[%emt 0:00:25]} 63. Ng6+ {[%emt 0:00:43]} Kf6 {[%emt 0:00:23]} 64. Nh4 {[%emt 0:00:11]} Ke6 {[%emt 0:00:38]} 65. Nf5 {[%emt 0:00:27]} Kd7 {[%emt 0:00:44]} 66. Ke5 {[%emt 0:00:51]} Nc3 {[%emt 0:00:20]} 67. Ng7 {[%emt 0:00:19]} Ke7 {[%emt 0:00:42]} 68. Nxh5 {[%emt 0:00:12]} Kf7 {[%emt 0:00:28]} 69. Nf4 {[%emt 0:00:32]} Ne4 {[%emt 0:00:16]} 70. Nxd5 {[%emt 0:02:17]} Nxg3 {[%emt 0:00:15]} 71. c6 {[%emt 0:00:25]} bxc6 {[%emt 0:00:59]} 72. b7 {[%emt 0:00:13]} 1-0

[Event "Ceske Budejovice Open-A 2019"]
[Site "Ceske Budejovice"]
[Date "2019.07.04"]
[Round "6.12"]
[White "Malinovsky, Petr"]
[Black "Vahala, Tomas"]
[Result "1/2-1/2"]
[ECO "D31"]
[WhiteElo "2058"]
[BlackElo "1774"]
[Annotator "NA"]
[PlyCount "57"]
[EventDate "2019.07.02"]
[EventCountry "CZE"]
[SourceTitle "playchess.com"]
[Source "ChessBase"]
[SourceQuality "1"]
[TimeControl "5400+30"]

1. d4 {[%emt 0:00:00]} d5 {[%emt 0:00:00]} 2. c4 {[%emt 0:00:00]} e6 {[%emt 0:00:00]} 3. Nc3 {[%emt 0:00:00]} c6 {[%emt 0:00:27]} 4. e4 {[%emt 0:00:37]} dxe4 {[%emt 0:04:17]} 5. Nxe4 {[%emt 0:00:30]} Nf6 {[%emt 0:00:33]} 6. Nxf6+ {[%emt 0:03:30]} Qxf6 {[%emt 0:00:15]} 7. a3 {[%emt 0:00:41]} Qd8 {[%emt 0:05:24]} 8. Nf3 {[%emt 0:00:44]} Be7 {[%emt 0:00:31]} 9. Bd3 {[%emt 0:00:49]} Nd7 {[%emt 0:00:57]} 10. O-O {[%emt 0:03:56]} Nf6 {[%emt 0:00:46]} 11. Qe2 {[%emt 0:03:54]} h6 {[%emt 0:02:12]} 12. b3 {[%emt 0:03:02]} b6 {[%emt 0:03:40]} 13. Bb2 {[%emt 0:00:43]} O-O {[%emt 0:00:25]} 14. Rad1 {[%emt 0:08:52]} Qc7 {[%emt 0:02:04]} 15. Rfe1 {[%emt 0:00:48]} Bb7 {[%emt 0:03:43]} 16. Bb1 {[%emt 0:01:34]} Rad8 {[%emt 0:04:18]} 17. Qc2 {[%emt 0:01:05]} Rfe8 {[%emt 0:11:54]} 18. Re3 {[%emt 0:20:39]} Bc8 {[%emt 0:08:29]} 19. Ne5 {[%emt 0:07:55]} Bd6 {[%emt 0:13:20]} 20. Rde1 {[%emt 0:03:58]} g6 {[%emt 0:07:58]} 21. d5 {[%emt 0:09:21]} cxd5 {[%emt 0:04:56]} 22. Nxg6 {[%emt 0:01:06]} Ng4 {[%emt 0:03:43]} 23. Ne5 {[%emt 0:07:38]} Bxe5 {[%emt 0:06:07]} 24. Rxe5 {[%emt 0:01:26]} f6 {[%emt 0:01:18]} 25. Rh5 {[%emt 0:02:36]} d4 {[%emt 0:05:09]} 26. h3 {[%emt 0:01:46]} d3 {[%emt 0:01:17]} 27. Qxd3 {[%emt 0:03:09]} Rxd3 {[%emt 0:00:28]} 28. Bxd3 {[%emt 0:00:01]} Ne5 {[%emt 0:01:51]} 29. Bc2 1/2-1/2

[Event "Ceske Budejovice Open-A 2019"]
[Site "Ceske Budejovice"]
[Date "2019.07.04"]
[Round "6.13"]
[White "Tajovsky, Matej"]
[Black "Placer, Sebastian"]
[Result "1/2-1/2"]
[ECO "B35"]
[WhiteElo "1779"]
[BlackElo "2040"]
[Annotator "NA"]
[PlyCount "101"]
[EventDate "2019.07.02"]
[EventCountry "CZE"]
[SourceTitle "playchess.com"]
[Source "ChessBase"]
[SourceQuality "1"]
[TimeControl "5400+30"]

1. e4 {[%emt 0:00:00]} c5 {[%emt 0:00:00]} 2. Nf3 {[%emt 0:00:00]} Nc6 {[%emt 0:00:00]} 3. d4 {[%emt 0:00:05]} cxd4 {[%emt 0:00:01]} 4. Nxd4 {[%emt 0:00:04]} g6 {[%emt 0:00:08]} 5. Be3 {[%emt 0:00:23]} Nf6 {[%emt 0:00:13]} 6. Nc3 {[%emt 0:00:05]} Bg7 {[%emt 0:00:07]} 7. Bc4 {[%emt 0:00:08]} Qa5 {[%emt 0:00:06]} 8. O-O {[%emt 0:11:05]} O-O {[%emt 0:00:02]} 9. Bb3 {[%emt 0:00:34]} d6 {[%emt 0:00:09]} 10. f3 {[%emt 0:02:08]} Bd7 {[%emt 0:00:38]} 11. Qd2 {[%emt 0:00:11]} Nxd4 {[%emt 0:02:57]} 12. Bxd4 {[%emt 0:01:36]} Bc6 {[%emt 0:00:53]} 13. Rad1 {[%emt 0:00:38]} Qc7 {[%emt 0:00:15]} 14. Rfe1 {[%emt 0:01:07]} Nd7 {[%emt 0:00:44]} 15. f4 {[%emt 0:04:54]} Nc5 {[%emt 0:03:14]} 16. Bd5 {[%emt 0:01:46]} Bxd4+ {[%emt 0:08:23]} 17. Qxd4 {[%emt 0:00:12]} Qb6 {[%emt 0:01:35]} 18. b4 {[%emt 0:01:24]} Na4 {[%emt 0:14:05]} 19. Nxa4 {[%emt 0:02:56]} Bxa4 {[%emt 0:00:32]} 20. Qxb6 {[%emt 0:02:15]} axb6 {[%emt 0:00:04]} 21. Bxb7 {[%emt 0:00:49]} Ra7 {[%emt 0:00:06]} 22. Bd5 {[%emt 0:01:03]} Bxc2 {[%emt 0:00:06]} 23. Rc1 {[%emt 0:00:37]} Ba4 {[%emt 0:05:18]} 24. f5 {[%emt 0:02:21]} Kg7 {[%emt 0:04:31]} 25. Re3 {[%emt 0:02:58]} Rd8 {[%emt 0:09:53]} 26. Rf3 {[%emt 0:04:19]} Bb5 {[%emt 0:10:24]} 27. Rc2 {[%emt 0:06:58]} gxf5 {[%emt 0:09:42]} 28. exf5 {[%emt 0:00:52]} Kf6 {[%emt 0:03:24]} 29. Rh3 {[%emt 0:02:39]} Rh8 {[%emt 0:02:10]} 30. Rcc3 {[%emt 0:02:19]} Bd7 {[%emt 0:02:00]} 31. Rh6+ {[%emt 0:02:36]} Kg7 {[%emt 0:14:13]} 32. Rh5 {[%emt 0:01:16]} h6 {[%emt 0:02:29]} 33. Bb3 {[%emt 0:04:02]} Kf6 {[%emt 0:03:03]} 34. g4 {[%emt 0:01:26]} Kg7 {[%emt 0:02:20]} 35. f6+ {[%emt 0:13:07]} exf6 {[%emt 0:01:21]} 36. Rd5 {[%emt 0:00:15]} Rc8 {[%emt 0:01:37]} 37. Rxc8 {[%emt 0:01:14]} Bxc8 {[%emt 0:00:00]} 38. Rxd6 {[%emt 0:00:09]} Bxg4 {[%emt 0:00:58]} 39. Rxb6 {[%emt 0:00:24]} Be6 {[%emt 0:00:52]} 40. Rc6 {[%emt 0:11:20]} Bxb3 {[%emt 0:00:44]} 41. axb3 {[%emt 0:00:01]} Rb7 {[%emt 0:00:00]} 42. Rc4 {[%emt 0:00:00]} Kf8 {[%emt 0:00:00]} 43. Kf2 {[%emt 0:00:00]} Ke7 {[%emt 0:00:00]} 44. Ke3 {[%emt 0:00:00]} Kd6 {[%emt 0:00:00]} 45. Kd4 {[%emt 0:00:00]} Rb5 {[%emt 0:00:00]} 46. Kc3 {[%emt 0:00:00]} Rg5 {[%emt 0:00:00]} 47. Rd4+ {[%emt 0:00:00]} Kc6 {[%emt 0:00:00]} 48. Kc4 {[%emt 0:00:00]} h5 {[%emt 0:00:00]} 49. h3 {[%emt 0:00:00]} Re5 {[%emt 0:00:00]} 50. Rf4 {[%emt 0:00:00]} f5 {[%emt 0:00:00]} 51. Kd4 {[%emt 0:00:00]} 1/2-1/2